Cogmind - Beta 17.1 @@@ ROGUE MODE // 2026.09.19 @ 18:27:51 Player: celerysam Result: Destroyed by B-75 Beast with Magnetic Acceleration Cannon Performance ------------- Evolutions (5) 2500 Regions Visited (10) 2000 Robots Destroyed (65) 325 Value Destroyed (2305) 2305 Prototype IDs (14) 280 Alien Tech Used (0) 0 Bonus (1275) 1275 TOTAL SCORE: 8685 Bonus ------- Follower Combat Kills 475 Met Data Miner 300 MAIN.C Attacked Proxy Base 500 Cogmind --------- Core Integrity 0/1000 Matter 300/300 Energy 100/100 System Corruption 0% Temperature Cool (12) Movement Core (50) Location -5/Extension Parts ------- > --- POWER (2) -------- (None) > --- PROPULSION (5) --- (None) > --- UTILITY (6) ------ Enhanced Optical Array Advanced System Shield > --- WEAPON (4) ------- (None) > --- INVENTORY (5) ---- Matter Compressor (250) Improved Sensor Array Advanced Signal Interpreter ECM Suite Phasing Sabre Peak State ------------ > --- POWER ------------ Micro Nuclear Core > --- PROPULSION ------- Surge Thruster Surge Thruster Xenon Bombardment Thruster Nuclear Pulse Thruster Nuclear Pulse Thruster > --- UTILITY ---------- Advanced Heat Sink Medium Storage Unit Enhanced Optical Array Improved Hacking Suite Advanced System Shield > --- WEAPON ----------- Arc Projector Improved Datajack Shock Maul Ripper > --- INVENTORY -------- Light Nuclear Core Gravmag System Improved Cooling System Matter Compressor Improved Sensor Array Advanced Signal Interpreter ECM Suite Improved Light Armor Plating Great Axe Phasing Sabre [Rating: 66] Favorites ----------- Power Ion Engine Engine Ion Engine Power Core Nuclear Core Propulsion Airjet Treads Light Treads Leg Aluminum Leg Wheel Wheel Hover Unit Airjet Flight Unit Xenon Bombardment Thruster Utility Visual Processing Unit Device Advanced Heat Sink Storage Large Storage Unit Processor Visual Processing Unit Hackware Improved Hacking Suite Protection Light Armor Plating Weapon Spread Laser Energy Gun Spread Laser Energy Cannon Light EM Pulse Cannon Ballistic Gun Minigun Ballistic Cannon Flak Cannon Launcher Rocket Launcher Special Weapon Mining Laser Impact Weapon Shock Maul Slashing Weapon Katana Special Melee Weapon Improved Datajack Build | -11 -10 -9 -8 -7 -7 -7 -6 -6 -5 -5 ------- Run | Yrd Mat Mat Mat Fac Low Dat Pro Fac Fac Ext Slots Evolved 10 | . . 2 2 2 . . . 2 2 . Power 1 | . . . . . . . . . 1 . Propulsion 3 | . . 1 . 1 . . . 1 . . Utility 4 | . . 1 . 1 . . . 1 1 . Weapon 2 | . . . 2 . . . . . . . Parts Attached 89 | 6 11 12 30 1 . . 16 6 3 4 Power 11 | 1 1 3 3 . . . 2 1 . . Engine 8 | 1 1 3 2 . . . 1 . . . Core 3 | . . . 1 . . . 1 1 . . Reactor . | . . . . . . . . . . . Propulsion 28 | 2 4 4 8 . . . 6 3 . 1 Treads 7 | . 2 3 2 . . . . . . . Leg 2 | 2 . . . . . . . . . . Wheel 5 | . 2 1 2 . . . . . . . Hover 6 | . . . 3 . . . 2 . . 1 Flight 8 | . . . 1 . . . 4 3 . . Utility 21 | 1 2 2 5 1 . . 6 1 1 2 Device 9 | . . 1 2 1 . . 4 . 1 . Storage 4 | 1 1 . 2 . . . . . . . Processor 4 | . 1 . 1 . . . . 1 . 1 Hackware 2 | . . . . . . . 1 . . 1 Protection 2 | . . 1 . . . . 1 . . . Artifact . | . . . . . . . . . . . Weapon 29 | 2 4 3 14 . . . 2 1 2 1 Energy Gun 11 | 1 2 3 3 . . . 1 . 1 . Energy Cannon 4 | . 1 . 3 . . . . . . . Ballistic Gun 7 | 1 . . 4 . . . . 1 1 . Ballistic Cannon 1 | . . . 1 . . . . . . . Launcher 1 | . . . 1 . . . . . . . Special Weapon 1 | . 1 . . . . . . . . . Impact Weapon 1 | . . . . . . . . . . 1 Slashing Weapon 2 | . . . 1 . . . 1 . . . Piercing Weapon . | . . . . . . . . . . . Special Melee Weapon 1 | . . . 1 . . . . . . . Unidentified Prototypes 3 | . . . 2 . . . . . . 1 Corrupted Parts 1 | . . 1 . . . . . . . . System Corruption 2 | . . 2 . . . . . . . . Parts Lost 43 | . 3 7 8 . . . 8 . . 17 Power 5 | . 1 1 . . . . 1 . . 2 Propulsion 17 | . 1 3 2 . . . 3 . . 8 Utility 7 | . . 1 1 . . . 1 . . 4 Weapon 14 | . 1 2 5 . . . 3 . . 3 Highest Loss Streak 16 | . 2 5 2 . . . 7 . . 16 To Critical Strikes 2 | . . 2 . . . . . . . . Average Backups 12 | 5 10 14 16 10 10 10 9 9 10 9 Power 1 | . 1 2 1 . . . . 1 1 . Propulsion 2 | 3 2 . 2 3 4 4 3 1 2 1 Utility 5 | . 3 6 8 5 5 5 5 5 5 5 Weapon 2 | 1 2 4 2 1 1 1 . . 1 1 Tool/Special . | . . . . . . . . . . . Unused Backups 25 | . 2 3 12 . . . 2 1 1 4 Power 3 | . . . 3 . . . . . . . Propulsion 1 | . . . . . . . 1 . . . Utility 11 | . 1 1 6 . . . . 1 . 2 Weapon 9 | . 1 2 2 . . . 1 . 1 2 Tool/Special 1 | . . . 1 . . . . . . . Average Slot Usage (%) 86 | . 89 73 95 81 84 84 90 85 76 69 Engine 7 | . 12 10 4 7 7 7 5 . . . Core 1 | . . . 3 . . . 1 6 5 4 Treads 6 | . 7 10 10 . . . . . . . Wheel 8 | . 14 5 13 . . . . . . . Hover 4 | . . . 2 23 23 23 21 . . . Flight 3 | . . . . . . . 6 33 28 23 Device 5 | . . 1 6 12 15 15 13 6 7 5 Storage 9 | . 14 11 9 7 7 7 7 6 5 4 Processor 9 | . 11 11 9 7 7 7 7 6 5 7 Protection 1 | . . 1 2 . . . . 5 3 . Energy Gun 10 | . 13 19 10 . . . 2 . . 4 Energy Cannon 3 | . 6 1 6 . . . . . . . Ballistic Gun 5 | . 8 . 5 7 7 7 5 5 4 . Slashing Weapon 3 | . . . 5 7 7 7 7 6 5 4 Special Melee Weapon 1 | . . . . 7 7 7 7 . . 3 Peak Build Rating 66 | 6 12 15 36 32 32 32 50 55 61 66 Average Rating 24 | 3 8 12 28 31 32 32 42 50 55 50 On Entrance 27 | . 6 12 15 29 32 32 32 41 55 53 Avg Prop Armor Cover (%) 7 | . . 6 8 . . . . . . . Naked Turns . | . . . . . . . . . . . Heaviest Build 66 | 11 32 36 66 24 24 24 30 27 28 27 Greatest Support 43 | 20 40 43 43 24 24 24 34 28 28 28 Greatest Overweight (x) 7 | . 1 3 7 . . . 1 . 1 5 Average Overweight (x) . | . . 1 1 . . . . . . . Largest Inventory Capacity 20 | 8 15 15 20 10 10 10 10 10 10 10 Average Capacity 13 | 6 14 15 17 10 10 10 10 10 10 9 Most Carried 20 | 7 15 15 20 10 10 10 10 10 10 10 Average Carried 12 | 5 10 14 16 9 10 10 9 9 10 9 Final Capacity 15 | 8 15 15 10 10 10 10 10 10 10 5 Final Carried 15 | 6 15 15 10 10 10 10 10 10 10 5 Class Distribution -------------------- 59% | Mutant 10% | Scavenger-Sprinter 8% | Scavenger-Skirmisher 7% | Scavenger-Mutant 6% | Skirmisher 5% | Scavenger-Tank Dominant Class ---------------- Mutant | -10/Materials Mutant | -9/Materials Scavenger-Skirmisher | -8/Materials Mutant | -7/Factory Mutant | -7/Lower Caves Mutant | -7/Data Miner Mutant | -6/Proximity Caves Scavenger-Sprinter | -6/Factory Scavenger-Sprinter | -5/Factory Mutant | -5/Extension Resources | -11 -10 -9 -8 -7 -7 -7 -6 -6 -5 -5 ----------- Run | Yrd Mat Mat Mat Fac Low Dat Pro Fac Fac Ext Matter Collected 1965 | 204 215 190 384 . 40 . 768 34 . 130 Remotely . | . . . . . . . . . . . Salvage Created 2707 | . 474 752 1095 . 54 . 132 71 . 129 Parts 143 | . 20 44 59 . 3 . 7 3 . 7 Haulers Intercepted 2 | . 1 . 1 . . . . . . . Recyclers Shooed 2 | . 1 . 1 . . . . . . . Parts Field Recycled . | . . . . . . . . . . . Retrieved Matter . | . . . . . . . . . . . Parts Self-Destructed 46 | . . . . . 3 . 43 . . . Prevented 58 | . . . . . . . 58 . . . Parts Restored . | . . . . . . . . . . . Kills | -11 -10 -9 -8 -7 -7 -7 -6 -6 -5 -5 ------- Run | Yrd Mat Mat Mat Fac Low Dat Pro Fac Fac Ext Combat Hostiles Destroyed 54 | . 8 17 23 . 1 . 2 1 . 2 Melee 3 | . . . . . . . . 1 . 2 Guns 28 | . 8 11 8 . 1 . . . . . Cannons 18 | . . 6 12 . . . . . . . AOE 5 | . . . 3 . . . 2 . . . Classes Destroyed 13 | . 3 4 5 . . . . . . 1 Worker 1 | . . . 1 . . . . . . . Hauler 2 | . 1 . 1 . . . . . . . Recycler 1 | . . . 1 . . . . . . . Mechanic 1 | . . 1 . . . . . . . . Watcher 5 | . 3 1 1 . . . . . . . Swarmer 6 | . . . 3 . . . 3 . . . Cutter 3 | . . . 3 . . . . . . . Grunt 30 | . 8 12 9 . 1 . . . . . Brawler 1 | . . 1 . . . . . . . . Duelist 1 | . . 1 . . . . . . . . Sentry 12 | . . 3 7 . . . . 1 . 1 Hunter 1 | . . . 1 . . . . . . . Programmer 1 | . . . . . . . . . . 1 Best Kill Streak 7 | . 2 7 6 . 1 . 2 1 . 1 Combat Bots Only 7 | . 2 7 6 . 1 . 2 1 . 1 Max Kills in Single Turn 2 | . 1 1 2 . 1 . 1 1 . 1 Gunslinging . | . . . . . . . . . . . Exploded 2 | . . . 2 . . . 1 . . . Melee 1 | . . . . . . . . 1 . 1 Uniques/NPCs Destroyed . | . . . . . . . . . . . Combat | -11 -10 -9 -8 -7 -7 -7 -6 -6 -5 -5 -------- Run | Yrd Mat Mat Mat Fac Low Dat Pro Fac Fac Ext Hostile Shots Fired 477 | . 73 71 107 . 15 . 66 18 13 114 Missed 177 | . 18 20 34 . 11 . 31 9 10 44 Hits 300 | . 55 51 73 . 4 . 35 9 3 70 Melee 10 | . . 5 5 . . . . . . . Projectile 290 | . 55 46 68 . 4 . 35 9 3 70 Critical Strikes 8 | . . 2 3 . . . 1 . 1 1 Damage Taken 5449 | . 722 810 1249 . 56 . 664 72 39 1837 Core 1584 | . 105 190 157 . 13 . 104 . 19 996 Absorbed by Shields . | . . . . . . . . . . . Regen/Repaired (Parts) 58 | . . . . . . . 58 . . . Core Remaining (%) 77 | 100 58 52 71 . . . 83 100 . . Volleys Fired 166 | . 57 41 49 . 6 . 12 1 . . Largest 4 | . 2 2 4 . 1 . 2 1 . . Hottest 252 | . 121 121 252 . 25 . 98 28 . . Shots Fired 345 | . 93 78 151 . 6 . 16 1 . . Gun 254 | . 83 63 88 . 6 . 13 1 . . Cannon 80 | . 7 15 58 . . . . . . . Launcher 8 | . . . 5 . . . 3 . . . Special 3 | . 3 . . . . . . . . . Kinetic 105 | . 46 . 45 . 6 . 7 1 . . Thermal 162 | . 40 41 81 . . . . . . . Explosive 8 | . . . 5 . . . 3 . . . Electromagnetic 70 | . 7 37 20 . . . 6 . . . Robot Hit Streak 16 | . 9 11 16 . 3 . 5 . . . Robot Miss Streak 8 | . 3 6 8 . 1 . 3 . . . Penetration Max . | . . . . . . . . . . . Secondary Targets 3 | . 2 . 1 . . . . . . . Max Gunslinging Chain 1 | . 1 . 1 . . . . . . . Shots Hit Robots 260 | . 62 62 93 2 4 . 22 2 . 13 Core Hits 177 | . 30 73 58 . 2 . 9 2 . 3 Critical Kills . | . . . . . . . . . . . Critical Parts Destroyed 1 | . . . . . 1 . . . . . Critical Strikes 10 | . 3 . 4 . 1 . . . . 2 Burn 7 | . 3 . 4 . . . . . . . Destroy 1 | . . . . . 1 . . . . . Sever 2 | . . . . . . . . . . 2 Melee Attacks 82 | . . . 5 5 1 . 27 19 7 18 Impact . | . . . . . . . . . . . Slashing 66 | . . . 5 5 1 . 17 19 7 12 Piercing . | . . . . . . . . . . . Sneak Attacks 17 | . . . 1 . . . 10 . . 6 Combat Hostiles . | . . . . . . . . . . . Follow-up Attacks . | . . . . . . . . . . . Damage Inflicted 5151 | . 740 988 2274 75 84 . 680 78 . 232 Guns 2514 | . 569 729 938 . 84 . 194 . . . Cannons 1256 | . 147 259 850 . . . . . . . Explosions 712 | . . . 361 . . . 351 . . . Melee 645 | . . . 125 75 . . 135 78 . 232 Ramming . | . . . . . . . . . . . Kinetic 816 | . 277 . 369 . 84 . 86 . . . Thermal 2152 | . 316 519 1317 . . . . . . . Explosive 519 | . . . 168 . . . 351 . . . Electromagnetic 1019 | . 147 469 295 . . . 108 . . . Impact . | . . . . . . . . . . . Slashing 645 | . . . 125 75 . . 135 78 . 232 Piercing . | . . . . . . . . . . . Highest Corruption 9 | . 3 9 . . . . . . . . Average Corruption 5 | . 2 7 . . . . . . . . Corruption Purged . | . . . . . . . . . . . Corruption Blocked . | . . . . . . . . . . . Effects 35 | . 7 28 . . . . . . . . Message Errors 11 | . 2 9 . . . . . . . . Matter Fused 10 | . 3 7 . . . . . . . . Heat Flow Errors 2 | . 1 1 . . . . . . . . Energy Discharges 5 | . 1 4 . . . . . . . . Parts Rejected 2 | . . 2 . . . . . . . . Data Loss (minor) 3 | . . 3 . . . . . . . . Data Loss (major) 1 | . . 1 . . . . . . . . Misfires 1 | . . 1 . . . . . . . . Overload Shots . | . . . . . . . . . . . Overflow Damage 47 | . . . 31 5 . . 11 . . . Projectiles . | . . . . . . . . . . . Explosions 41 | . . . 30 . . . 11 . . . Melee 6 | . . . 1 5 . . . . . . Knockbacks 5 | . . . 5 . . . . . . . Impact . | . . . . . . . . . . . Kinetic 5 | . . . 5 . . . . . . . Secondary . | . . . . . . . . . . . Self-Inflicted Damage 216 | . 36 . 180 . . . . . . . Shots 5 | . 1 . 4 . . . . . . . Rammed . | . . . . . . . . . . . Targets Rammed . | . . . . . . . . . . . Kicked . | . . . . . . . . . . . Crushed . | . . . . . . . . . . . Highest Temperature 560 | . 211 414 560 . . . 2 . 6 6 Average Temperature 128 | . 63 138 172 . . . 2 . 6 6 Received Heat Transfer 1702 | . 384 270 369 . 27 . 307 24 36 285 Effects 17 | . 1 5 11 . . . . . . . Shutdowns 4 | . . 1 3 . . . . . . . Energy Bleed 2 | . . 1 1 . . . . . . . Interference 6 | . 1 2 3 . . . . . . . Short Circuit 1 | . . . 1 . . . . . . . Damage (minor) 4 | . . 1 3 . . . . . . . Siege Activations . | . . . . . . . . . . . Martial Activations . | . . . . . . . . . . . Shielding Activations . | . . . . . . . . . . . Robots Disrupted . | . . . . . . . . . . . Combat Hostiles . | . . . . . . . . . . . Robots Corrupted 1 | . 1 . . . . . . . . . Combat Hostiles . | . . . . . . . . . . . Parts Fried 2 | . 1 . 1 . . . . . . . Impact Corruptions . | . . . . . . . . . . . Robots Melted . | . . . . . . . . . . . Combat Hostiles . | . . . . . . . . . . . Parts Melted 2 | . 1 . 1 . . . . . . . Heat Transferred 4017 | . 1111 660 2246 . . . . . . . Parts Sabotaged . | . . . . . . . . . . . Parts Stolen . | . . . . . . . . . . . Parts Stripped . | . . . . . . . . . . . Power Chain Reactions 2 | . . . 2 . . . . . . . Alert | -11 -10 -9 -8 -7 -7 -7 -6 -6 -5 -5 ------- Run | Yrd Mat Mat Mat Fac Low Dat Pro Fac Fac Ext Maximum Alert Level 1 | . . . 1 . . . . . . . Low Security (%) 80 | 100 100 100 33 100 . . . 100 100 100 Level 1 19 | . . . 66 . . . . . . . Level 2 . | . . . . . . . . . . . Level 3 . | . . . . . . . . . . . Level 4 . | . . . . . . . . . . . Level 5 . | . . . . . . . . . . . High Security . | . . . . . . . . . . . Max Security . | . . . . . . . . . . . Peak Influence 359 | . 96 150 359 175 . . . 82 23 31 Initial 163 | . . . 27 163 . . . 67 18 . Average 80 | . 12 51 202 165 . . . 59 11 10 Influence Increases 2372 | . 275 432 823 32 20 . 563 61 27 139 Destroy 0b10 Robot/C 1340 | . 160 340 460 . 20 . 260 20 . 80 Destroy 0b10 Robot/NC 55 | . 20 10 20 . . . 5 . . . Destroy Leader 284 | . 48 82 124 . . . 10 10 . 10 Allied During Kill 125 | . . . . . . . 123 . . 2 Trap Triggered on 0b10 10 | . . . 10 . . . . . . . Successful Hack 2 | . . . 2 . . . . . . . Disable Machine 90 | . 30 . 30 . . . . 15 15 . Destroy Structure 91 | . 2 . 57 2 . . . 16 12 2 Partial Spotted 60 | . 15 . 15 30 . . . . . . Lose Combat Pursuer 315 | . . . 105 . . . 165 . . 45 Influence Decreases 2367 | . 275 365 531 226 132 53 455 131 65 134 Entered New Map 412 | . . . 40 196 62 53 . 41 20 . Time Decay 1491 | . 255 295 411 30 70 . 255 90 45 40 Lost Part 304 | . 20 70 80 . . . 80 . . 54 Lost Ally 160 | . . . . . . . 120 . . 40 Squads Dispatched 10 | . 2 1 4 1 . . . . . 2 Investigation 2 | . 1 . . . . . . . . 1 Extermination . | . . . . . . . . . . . Reinforcement 6 | . 1 1 2 1 . . . . . 1 Assault . | . . . . . . . . . . . Garrison 2 | . . . 2 . . . . . . . Intercept . | . . . . . . . . . . . Searches Triggered . | . . . . . . . . . . . Construction Impeded . | . . . . . . . . . . . Haulers Reinforced . | . . . . . . . . . . . Active Scanning Responses . | . . . . . . . . . . . Cargo Convoy Interrupts . | . . . . . . . . . . . Stealth | -11 -10 -9 -8 -7 -7 -7 -6 -6 -5 -5 --------- Run | Yrd Mat Mat Mat Fac Low Dat Pro Fac Fac Ext Distress Signals 6 | . 2 2 1 . . . . . . 1 Communications Jammed . | . . . . . . . . . . . Distress Signals . | . . . . . . . . . . . Times Spotted 152 | . 21 28 44 3 5 . 30 2 4 15 Peak Tracking Total 9 | . 4 9 8 3 4 . 7 1 2 9 Tactical Retreats 13 | . . . 4 . . . 7 . 1 1 ECM-based Alert Blocks 2 | . . . . . . . . . 2 . Traps | -11 -10 -9 -8 -7 -7 -7 -6 -6 -5 -5 ------- Run | Yrd Mat Mat Mat Fac Low Dat Pro Fac Fac Ext Traps Triggered 14 | . 3 1 6 . . . . . 2 2 Indirectly . | . . . . . . . . . . . Trap Hack Attempts 7 | . . . 7 . . . . . . . Triggered . | . . . . . . . . . . . Disarmed 6 | . . . . . . . . . . 6 Reprogrammed 1 | . . . 1 . . . . . . . Reused 1 | . . . 1 . . . . . . . Traps Extracted . | . . . . . . . . . . . Installed . | . . . . . . . . . . . Triggered 1 | . . . 1 . . . . . . . Machines | -11 -10 -9 -8 -7 -7 -7 -6 -6 -5 -5 ---------- Run | Yrd Mat Mat Mat Fac Low Dat Pro Fac Fac Ext Machines Disabled 6 | . 2 . 2 . . . . 1 1 . Max in Single Turn 1 | . 1 . 1 . . . . 1 1 . Machines Repaired . | . . . . . . . . . . . Machines Dismantled . | . . . . . . . . . . . Machines Sabotaged . | . . . . . . . . . . . Overloaded Fab Kills . | . . . . . . . . . . . Hacking | -11 -10 -9 -8 -7 -7 -7 -6 -6 -5 -5 --------- Run | Yrd Mat Mat Mat Fac Low Dat Pro Fac Fac Ext Machines Accessed 16 | . 2 1 1 . 1 4 2 1 1 3 Terminals 5 | . 1 . . . . . 1 . . 3 Fabricators . | . . . . . . . . . . . Repair Stations 2 | . 1 . . . . . . . 1 . Recycling Units 1 | . . . . . . . 1 . . . Scanalyzers 3 | . . 1 1 . . . . 1 . . Garrison Access . | . . . . . . . . . . . Total Hacks 61 | . 4 6 3 . 1 32 3 2 1 9 Successful 45 | . 1 3 2 . 1 32 2 1 1 2 Failed 15 | . 3 2 1 . . . 1 1 . 7 Catastrophic 3 | . 2 . . . . . . . . 1 Database Lockouts 1 | . . 1 . . . . . . . . Manual 2 | . 2 . . . . . . . . . Terminals 12 | . 2 . . . . . 1 . . 9 Fabricators . | . . . . . . . . . . . Repair Stations 3 | . 2 . . . . . . . 1 . Recycling Units 2 | . . . . . . . 2 . . . Scanalyzers 11 | . . 6 3 . . . . 2 . . Garrison Access . | . . . . . . . . . . . Terminal Hacks 36 | . . . . . 1 32 1 . . 2 Record 13 | . . . . . 1 11 . . . 1 Part Schematic 13 | . . . . . . 13 . . . . Robot Schematic 5 | . . . . . . 5 . . . . Prototype ID Bank 3 | . . . . . . 3 . . . . Open Door 1 | . . . . . . . 1 . . . Disarm Traps 1 | . . . . . . . . . . 1 Fabricator Hacks . | . . . . . . . . . . . Repair Station Hacks 2 | . 1 . . . . . . . 1 . Scan Component 1 | . 1 . . . . . . . . . Refit 1 | . . . . . . . . . 1 . Recycling Unit Hacks 1 | . . . . . . . 1 . . . Report Inventory 1 | . . . . . . . 1 . . . Scanalyzer 6 | . . 3 2 . . . . 1 . . Insert Component 1 | . . 1 . . . . . . . . Analyze 1 | . . 1 . . . . . . . . Retrieve Study 4 | . . 1 2 . . . . 1 . . Garrison Access Hacks . | . . . . . . . . . . . Unauthorized Hacks . | . . . . . . . . . . . Terminals . | . . . . . . . . . . . Fabricators . | . . . . . . . . . . . Repair Stations . | . . . . . . . . . . . Recycling Units . | . . . . . . . . . . . Scanalyzers . | . . . . . . . . . . . Garrison Access . | . . . . . . . . . . . Data Cores Recovered . | . . . . . . . . . . . Used . | . . . . . . . . . . . Hacking Detections 8 | . 2 . . . . . 2 1 . 3 Full Trace Events 1 | . . . . . . . . . . 1 Feedback Events . | . . . . . . . . . . . Feedback Blocked . | . . . . . . . . . . . Robot Schematics Acquired 5 | . . . . . . 5 . . . . Robots Built . | . . . . . . . . . . . Authchips . | . . . . . . . . . . . Time . | . . . . . . . . . . . Total Robot Build Rating . | . . . . . . . . . . . Part Schematics Acquired 14 | . . 1 . . . 13 . . . . Parts Built . | . . . . . . . . . . . Authchips . | . . . . . . . . . . . Time . | . . . . . . . . . . . Total Part Build Rating . | . . . . . . . . . . . Part Studies Acquired 4 | . . 1 2 . . . . 1 . . Parts Repaired . | . . . . . . . . . . . Time . | . . . . . . . . . . . Parts Recycled . | . . . . . . . . . . . Recycled Matter . | . . . . . . . . . . . Retrieved Matter . | . . . . . . . . . . . Retrieved Components . | . . . . . . . . . . . Parts Scanalyzed 1 | . . 1 . . . . . . . . Part Schematics Acquired 1 | . . 1 . . . . . . . . Parts Damaged . | . . . . . . . . . . . Bothacking | -11 -10 -9 -8 -7 -7 -7 -6 -6 -5 -5 ------------ Run | Yrd Mat Mat Mat Fac Low Dat Pro Fac Fac Ext Used RIF Installer . | . . . . . . . . . . . Robots Hacked . | . . . . . . . . . . . Non-combat . | . . . . . . . . . . . Combat . | . . . . . . . . . . . Robot Hacks Applied . | . . . . . . . . . . . Relay Couplers Released . | . . . . . . . . . . . Fabnet Peak Effective % . | . . . . . . . . . . . Robots Rewired 12 | . . . . . . . 8 . . 4 Allies Hacked . | . . . . . . . . . . . Hacks Repelled . | . . . . . . . . . . . Allies | -11 -10 -9 -8 -7 -7 -7 -6 -6 -5 -5 -------- Run | Yrd Mat Mat Mat Fac Low Dat Pro Fac Fac Ext Total Allies 15 | . . . . . . . 9 . . 6 Largest Group 8 | . . . . . . . 8 . . 3 Highest-Rated Group 170 | . . . . . . . 170 . . 76 Highest-Rated Ally 41 | . . . . . . . 41 . . 39 Total Orders . | . . . . . . . . . . . Ally Attacks 96 | . . . . . . . 74 . . 22 Total Damage 2096 | . . . . . . . 1599 . . 497 Kills 14 | . . . . . . . 12 . . 2 Allies Corrupted . | . . . . . . . . . . . Allies Melted 1 | . . . . . . . 1 . . . Intel | -11 -10 -9 -8 -7 -7 -7 -6 -6 -5 -5 ------- Run | Yrd Mat Mat Mat Fac Low Dat Pro Fac Fac Ext Active Infowar (turns) 4027 | . 1119 309 1175 60 140 57 713 180 108 166 Optics 4027 | . 1119 309 1175 60 140 57 713 180 108 166 Sensors 1 | . . . . . . . 1 . . . Structural 109 | . . 109 . . . . . . . . ECM 89 | . . . . . . . . . 44 45 Robot Analysis Total . | . . . . . . . . . . . Derelict Logs Recovered 1 | . . . . . . . 1 . . . Drone Launches . | . . . . . . . . . . . Drone Recoveries . | . . . . . . . . . . . Exploration | -11 -10 -9 -8 -7 -7 -7 -6 -6 -5 -5 ------------- Run | Yrd Mat Mat Mat Fac Low Dat Pro Fac Fac Ext Turns Passed 4909 | 70 1396 844 1175 60 140 57 713 180 108 166 Spaces Moved 4623 | 53 870 364 633 88 243 109 1280 448 287 248 Core 36 | 12 . . . . . . . . . 24 Treads 665 | . 234 251 180 . . . . . . . Legs 69 | 41 28 . . . . . . . . . Wheels 1034 | . 608 113 313 . . . . . . . Hover 1453 | . . . 140 88 243 109 871 . . 2 Flight 1366 | . . . . . . . 409 448 287 222 Fastest Speed 21 | 50 95 85 52 52 52 52 28 25 27 21 Average Speed 83 | 104 132 190 141 52 52 52 43 26 27 33 Slowest Speed 500 | 120 240 240 500 52 52 52 120 27 111 300 Overloaded Moves 32 | . . . . . . . . . . 32 Propulsion Burnouts . | . . . . . . . . . . . Robots Hopped 1 | . . . . . . . 1 . . . Potential Cave-ins 3 | . . . . . . . 3 . . . Cave-ins Triggered . | . . . . . . . . . . . Exploration Rate (%) 44 | 3 97 34 63 3 37 79 89 22 12 49 Regions Visited 10 Branch Regions 4 Pre-discovered Areas 1 | . . . . . . 1 . . . . Known Exits Taken . | . . . . . . . . . . . Unknown Exits Taken 10 | 1 1 1 1 1 1 1 1 1 1 . Scrap Searched 2 | . . . . . 2 . . . . . Spaces Dug 41 | . . . . 2 1 . 14 17 6 1 Terrain Destroyed 132 | . 1 . 66 2 1 . 38 17 6 1 Melee 40 | . . . . 2 1 . 14 16 6 1 Projectile 17 | . 1 . 15 . . . . 1 . . AOE 75 | . . . 51 . . . 24 . . . Terrain Rammed . | . . . . . . . . . . . Walls Destroyed . | . . . . . . . . . . . Machines Disabled . | . . . . . . . . . . . Actions | -11 -10 -9 -8 -7 -7 -7 -6 -6 -5 -5 --------- Run | Yrd Mat Mat Mat Fac Low Dat Pro Fac Fac Ext Total 5278 | 65 1026 442 806 94 249 108 1392 481 303 312 Wait 94 | . 62 4 8 . . . 20 . . . Move 4611 | 52 869 363 632 87 242 108 1277 447 286 248 Hop 1 | . . . . . . . 1 . . . Pick Up 81 | 7 19 11 28 1 . . 9 3 1 2 Fast Attach 34 | 5 . 5 15 . . . 1 . 5 3 Attach 46 | 1 5 7 16 1 . . 8 3 . 5 Detach 5 | . 1 . . . . . 2 1 . 1 Swap 40 | . 6 3 15 . . . 10 4 1 1 Drop 61 | . 7 8 31 . . . 7 3 3 2 Fire 166 | . 57 41 49 . 6 . 12 1 . . Melee 82 | . . . 5 5 1 . 27 19 7 18 Ram . | . . . . . . . . . . . Kick . | . . . . . . . . . . . Crush . | . . . . . . . . . . . Escape Stasis 30 | . . . . . . . . . . 30 Rewire 20 | . . . . . . . 18 . . 2 Trap 7 | . . . 7 . . . . . . . Miscellaneous . | . . . . . . . . . . . Route ------- -11/Scrapyard -10/Materials (discovered 4 exits: *Mat x3 / [*Min]) -9/Materials -8/Materials (discovered 3 exits: [*Fac x2] / [*Sto]) -7/Factory -7/Lower Caves -7/Data Miner -6/Proximity Caves -6/Factory -5/Factory -5/Extension History --------- Turn | Location | Event 17 | -11/Scrapyard | Discovered new exit (range 16) 71 | -11/Scrapyard | Entered Materials 314 | -10/Materials | Build established: Mutant 387 | -10/Materials | Discovered new exit (range 9) 588 | -10/Materials | Discovered new exit (range 14) 813 | -10/Materials | Discovered new exit (range 18) 905 | -10/Materials | Discovered new exit (range 18) 1467 | -10/Materials | Entered another Materials area 1467 | -9/Materials | Evolved 2 slots: Propulsion x1, Utility x1 1494 | -9/Materials | Central database locked down 1576 | -9/Materials | Destroyed 7 combat bots 1623 | -9/Materials | Lost 5 parts (2n1u2w) 2303 | -9/Materials | Discovered new exit (range 6) 2311 | -9/Materials | Entered another Materials area 2311 | -8/Materials | Evolved 2 slots: Weapon x2 2853 | -8/Materials | Discovered new exit (range 9) 3009 | -8/Materials | Discovered new exit (range 3) 3309 | -8/Materials | Garrison activated, responded to threat 3481 | -8/Materials | Discovered new exit (range 10) 3486 | -8/Materials | Entered Factory 3486 | -7/Factory | Evolved 2 slots: Propulsion x1, Utility x1 3541 | -7/Factory | Discovered new exit (range 10) 3546 | -7/Factory | Entered Lower Caves 3547 | -7/Lower Caves | Encountered a Warlord checkpoint 3616 | -7/Lower Caves | Entered a destroyed Warlord outpost 3659 | -7/Lower Caves | A Derelict revealed a hidden shortcut to meet someone special 3686 | -7/Lower Caves | Entered Data Miner 3686 | -7/Data Miner | Discovered new exit (range 6) 3694 | -7/Data Miner | Met Data Miner 3706 | -7/Data Miner | Learned location of Section 7 (-2) 3706 | -7/Data Miner | Acquired the access code to Warlord's prototype stash 3719 | -7/Data Miner | Received God Mode back door access code from Data Miner 3743 | -7/Data Miner | Entered Proximity Caves 3744 | -6/Proximity Caves | Greeted by an Infiltrator in a former 0b10 base 3829 | -6/Proximity Caves | Former 0b10 base attacked by MAIN.C 3917 | -6/Proximity Caves | Lost 3 allies 3996 | -6/Proximity Caves | Attracted the attention of an 0b10 checkpoint 4047 | -6/Proximity Caves | Lost 7 allies 4143 | -6/Proximity Caves | 0b10 base defense nominally successful 4311 | -6/Proximity Caves | Lost 7 parts (1p3n1u2w) 4391 | -6/Proximity Caves | Learned Factory trap positions 4442 | -6/Proximity Caves | Discovered new exit (range 19) 4456 | -6/Proximity Caves | Entered Factory 4456 | -6/Factory | Evolved 2 slots: Propulsion x1, Utility x1 4457 | -6/Factory | Loaded intel: 113 trap records 4596 | -6/Factory | Build established: Scavenger-Sprinter 4627 | -6/Factory | Discovered new exit (range 18) 4636 | -6/Factory | Entered another Factory area 4636 | -5/Factory | Evolved 2 slots: Power x1, Utility x1 4738 | -5/Factory | Discovered new exit (range 22) 4744 | -5/Factory | Entered Extension 4804 | -5/Extension | Lost 4 allies 4833 | -5/Extension | Rescued a captive Derelict 4841 | -5/Extension | Rescued a captive Derelict 4863 | -5/Extension | Rescued a captive Derelict 4878 | -5/Extension | Spotted B-75 Beast 4879 | -5/Extension | Spotted B-75 Beast 4894 | -5/Extension | Core integrity fell below 50% 4905 | -5/Extension | Core integrity fell below 20% 4910 | -5/Extension | Destroyed by B-75 Beast with Magnetic Acceleration Cannon Last Messages --------------- 04887_ Slug penetrates Wall. 04888_ U-05 Engineer builds a Wall. 04890_ Mic. Nuclear Core destroyed. 04890_ Penetrated by Slug. 04895_ Knocked back. 04895_ Penetrated by Slug. 04895_ Slug penetrates Wall. 04898_ Knocked back. 04898_ Penetrated by Slug. 04899_ U-05 Engineer builds a Wall. 04901_ Med. Storage Unit destroyed. 04902_ Connecting with Door Terminal... 04902_ ALERT: Suspicious activity at Terminal E001. Dispatching Investigation squad. 04904_ U-05 Engineer builds a Wall. 04906_ Knocked back. 04907_ Penetrated by Slug. 04907_ Slug penetrates Wall. 04908_ U-05 Engineer builds a Wall. 04910_ Imp. Target Analyzer destroyed. Map ----- +----------------------------------------------------+ | # #????????????????????????????????????????? | | # #????????????????????????????????????????? | | # #????????????????????????????????????????? | | # #????????????????????????????????????????? | | # #????????????????????????????????????????? | | # ##### #????????????????????????????????????????? | | # #???# #????????? ??????????????????????????????? | | #+##### #????????? ??????????????????????????????? | | # #????????? ??????????????????????????????? | | + #????????# #?????????????????????????????? | | # #????????# #?????????????????????????????? | | # #????????# #?????????????????????????????? | | ####### #????????# #?????????????????????????????? | | ??????# #????????# #?????????????????????????????? | | ?????## #?######?# #?????????????????????????????? | | ????### ### ## ### ###???????????????????????????? | | ????#"" "" "" ""#???????????????????????????? | | ????# " " " #???????????????????????????? | | ????# Y #???????????????????????????? | | ?##?# #???????????????????????????? | | ##"## ########################????? | | % Y ???? | | ???? | | % ??? | | % % ??? | | %% ku @ u ??? | | #####u BB BB ####################????????? | | ??# # BB %#???????????????????????????? | | ???## ! #???????????????????????????? | | ???## !% % "#??????????????????????????? | | ???## % ##??????????????????????????? | | ???###"###T#"""###"###???????????????????????????? | | ?????##??###?????###?????????????????????????????? | | ?????????????????????????????????????????????????? | | | | | | | | | | | | | | | | | | | | | | | | | | | | | | | | | +----------------------------------------------------+ Best States ------------- Heat Dissipation 61 Energy Generation 15 Energy Capacity 265 Matter Stores 300 Matter Capacity 300 Sight Range 22 Terrain Scan Density 10 ECM Strength 1 Armor Coverage 150 Evasion (%) 65 Target Analysis 6 Recoil Reduction 6 Offensive Hacking 12 Defensive Hacking 14 Item Schematics ----------------- Structural Scanner | -9/Materials | Scanalyzed Combat Drone Bay | -7/Data Miner | Free Lgt. Regenerative Plating | -7/Data Miner | Free Cld. Cesium-ion Thruster | -7/Data Miner | Free Gravity Neutralizer | -7/Data Miner | Free Imp. Heavy Machine Gun | -7/Data Miner | Free Nuclear Pulse Array | -7/Data Miner | Free Adv. Plasma Cannon | -7/Data Miner | Free Adv. Trap Extractor | -7/Data Miner | Free Gyrokinetic Inverter | -7/Data Miner | Free Imp. Gravmag System | -7/Data Miner | Free Lrn. Tractor Beam | -7/Data Miner | Free Matter Neutralizer | -7/Data Miner | Free Adv. Thermal Generator | -7/Data Miner | Free Robot Schematics ------------------ G-47 Trooper | -7/Data Miner | Free M-28 Smith | -7/Data Miner | Free A-15 Conveyor | -7/Data Miner | Free S-27 Virus | -7/Data Miner | Free B-48 Gladiator | -7/Data Miner | Free Fabricated ------------ Nothing Repaired ---------- Nothing Studied --------- Wheel | -9/Materials | Hacked Katana | -8/Materials | Hacked Surge Thruster | -8/Materials | Hacked Cesium-ion Thruster | -6/Factory | Hacked Alien Tech Used ----------------- None Achievements -------------- None Challenges ------------ None Game ------ Seed TrapRemoteInsulator Manual? 0 Play Time 01:46:30 Cumulative 308.3 hours Start 2026.09.19 @ 12:36:27 End 2026.09.19 @ 18:27:51 Sessions 1 Manual Loads 0 Difficulty Rogue Special Mode None Game No. 475 Rogue 475 Adventurer 0 Explorer 0 Win Type - Total 1 Types 1/0/0/0/0/0/0/0/0/0 Lore% 66 Gallery% 60 Achievement% 35 Wizard Run 0 Options --------- Layout 1 ASCII 0 Keyboard 0 Movement Mouse Keybinds 0 Fullscreen 2 Font 24/Tallcaps Map View 50x35 Zoom Use 0% Tactical HUD 1 Map Filters NONE Filters NONE Steam 1 RUN: e025f440-61e7-4361-b244-a8bbc1a466cc